Cogmind - Beta 13 @@@ ROGUE MODE // 2024.04.05 @ 17:53:18 Player: zsh Result: Destroyed by G-47 Trooper with Particle Gun Performance ------------- Evolutions (2) 1000 Regions Visited (3) 600 Robots Destroyed (43) 215 Value Destroyed (1477) 1477 Prototype IDs (2) 40 Alien Tech Used (0) 0 Bonus (38) 38 TOTAL SCORE: 3370 Bonus ------- High Alert Combat Kills 38 Cogmind --------- Core Integrity 0/550 Matter 114/300 Energy 66/100 System Corruption 29% Temperature Cool (9) Movement Core (50) Location -8/Materials Parts ------- > --- POWER (2) -------- (None) > --- PROPULSION (2) --- (None) > --- UTILITY (4) ------ Improved Terrain Scan Processor Advanced Targeting Computer > --- WEAPON (3) ------- (None) > --- INVENTORY (5) ---- (None) Peak State ------------ > --- POWER ------------ Improved Ion Engine > --- PROPULSION ------- Aerolev Unit Aerolev Unit > --- UTILITY ---------- Structural Scanner Improved Terrain Scan Processor Improved Weapon Shielding > --- WEAPON ----------- Particle Cannon Flak Cannon Advanced EMP Blaster > --- INVENTORY -------- Carbon-fiber Leg Cesium-ion Thruster Light Assault Rifle Grenade Launcher Grenade Launcher [Rating: 26] Favorites ----------- Power Light Ion Engine Engine Light Ion Engine Power Core Light Nuclear Core Propulsion Aluminum Leg Treads Light Treads Leg Aluminum Leg Hover Unit Aerolev Unit Flight Unit Cesium-ion Thruster Utility Structural Scanner Device Structural Scanner Storage Large Storage Unit Processor Terrain Scan Processor Protection Light Armor Plating Weapon Grenade Launcher Energy Gun Small Laser Energy Cannon Particle Cannon Ballistic Gun Light Assault Rifle Ballistic Cannon Flak Cannon Launcher Grenade Launcher Special Weapon Welding Torch Build | -11 -10 -9 -8 ------- Run | Yrd Mat Mat Mat Slots Evolved 4 | . . 2 2 Power 1 | . . 1 . Propulsion . | . . . . Utility 2 | . . . 2 Weapon 1 | . . 1 . Parts Attached 46 | 5 12 5 24 Power 7 | 1 2 3 1 Engine 5 | 1 2 2 . Core 2 | . . 1 1 Reactor . | . . . . Propulsion 10 | 2 2 . 6 Treads 2 | 2 . . . Leg 4 | . 2 . 2 Wheel . | . . . . Hover 2 | . . . 2 Flight 2 | . . . 2 Utility 9 | . 3 1 5 Device 2 | . 1 . 1 Storage 1 | . . . 1 Processor 3 | . 1 . 2 Hackware . | . . . . Protection 3 | . 1 1 1 Artifact . | . . . . Weapon 20 | 2 5 1 12 Energy Gun 3 | 1 1 . 1 Energy Cannon 2 | . . . 2 Ballistic Gun 5 | 1 2 . 2 Ballistic Cannon 3 | . . . 3 Launcher 6 | . 1 1 4 Special Weapon 1 | . 1 . . Impact Weapon . | . . . . Slashing Weapon . | . . . . Piercing Weapon . | . . . . Special Melee Weapon . | . . . . Unidentified Prototypes 2 | . . . 2 Corrupted Parts 4 | . . . 4 System Corruption 28 | . . . 28 Parts Lost 30 | . 7 2 21 Power 6 | . 1 2 3 Propulsion 6 | . 2 . 4 Utility 3 | . . . 3 Weapon 15 | . 4 . 11 Highest Loss Streak 13 | . 7 1 13 To Critical Strikes 1 | . . . 1 Average Slot Usage (%) 79 | . 83 95 61 Engine 12 | . 13 17 7 Treads 2 | . 8 . . Leg 14 | . 17 22 6 Hover 1 | . . . 3 Device 6 | . . 11 9 Processor 4 | . 8 . 3 Protection 7 | . 7 10 5 Energy Gun 7 | . 12 11 . Energy Cannon 2 | . . . 6 Ballistic Gun 4 | . 13 . . Ballistic Cannon 2 | . . . 6 Launcher 9 | . . 22 9 Naked Turns 3 | . 3 . . Heaviest Build 29 | 9 9 21 29 Greatest Support 40 | 40 40 20 25 Greatest Overweight (x) 8 | 1 1 1 8 Average Overweight (x) . | . . . 1 Largest Inventory Capacity 15 | 5 5 5 15 Average Capacity 5 | 5 5 5 5 Most Carried 5 | 1 5 5 5 Average Carried 3 | . 2 4 3 Final Capacity 5 | 5 5 5 5 Final Carried 5 | 1 5 5 . Class Distribution -------------------- 25% | Mutant 23% | Scavenger-Mutant 21% | Scavenger-Tank 17% | Bomber 6% | Scavenger-Bomber 4% | Skirmisher Dominant Class ---------------- Scavenger-Mutant | -10/Materials Scavenger-Tank | -9/Materials Bomber | -8/Materials Resources | -11 -10 -9 -8 ----------- Run | Yrd Mat Mat Mat Matter Collected 1193 | 213 228 244 508 Remotely . | . . . . Salvage Created 1363 | . 309 386 668 Parts 92 | . 26 23 43 Haulers Intercepted 1 | . . . 1 Recyclers Shooed 1 | . . . 1 Parts Field Recycled . | . . . . Retrieved Matter . | . . . . Parts Self-Destructed . | . . . . Prevented . | . . . . Kills | -11 -10 -9 -8 ------- Run | Yrd Mat Mat Mat Combat Hostiles Destroyed 32 | . 7 13 12 Guns 13 | . 7 5 1 Cannons 5 | . . . 5 AOE 14 | . . 8 6 Classes Destroyed 11 | . 5 4 2 Worker 3 | . 1 . 2 Builder 2 | . 1 . 1 Tunneler 1 | . . 1 . Hauler 1 | . . . 1 Operator 1 | . . 1 . Watcher 3 | . 1 . 2 Swarmer 1 | . 1 . . Grunt 22 | . 6 9 7 Brawler 1 | . . 1 . Sentry 7 | . . 3 4 Heavy 1 | . . . 1 Best Kill Streak 6 | . 5 5 6 Combat Bots Only 4 | . 2 4 4 Max Kills in Single Turn 3 | . 1 2 3 Gunslinging . | . . . . Exploded 2 | . . 2 2 Melee . | . . . . Uniques/NPCs Destroyed . | . . . . Combat | -11 -10 -9 -8 -------- Run | Yrd Mat Mat Mat Hostile Shots Fired 270 | . 96 47 127 Missed 78 | . 23 16 39 Damage Taken 3282 | . 839 489 1954 Core 882 | . 192 130 560 Absorbed by Shields . | . . . . Redirected to Shielding 47 | . . 47 . Core Remaining (%) 63 | 100 23 67 . Volleys Fired 138 | . 62 30 46 Largest 3 | . 2 3 3 Hottest 148 | . 70 100 148 Shots Fired 237 | . 90 66 81 Gun 129 | . 86 30 13 Cannon 40 | . . . 40 Launcher 64 | . . 36 28 Special 4 | . 4 . . Kinetic 72 | . 45 . 27 Thermal 101 | . 45 30 26 Explosive 53 | . . 36 17 Electromagnetic 11 | . . . 11 Robot Hit Streak 10 | . 8 10 7 Robot Miss Streak 8 | . 5 4 8 Penetration Max . | . . . . Secondary Targets 2 | . 2 . . Max Gunslinging Chain 1 | . 1 . . Shots Hit Robots 114 | . 40 29 45 Core Hits 96 | . 20 32 44 Critical Kills . | . . . . Critical Parts Destroyed . | . . . . Critical Strikes . | . . . . Melee Attacks . | . . . . Impact . | . . . . Slashing . | . . . . Piercing . | . . . . Sneak Attacks . | . . . . Combat Hostiles . | . . . . Follow-up Attacks . | . . . . Damage Inflicted 2969 | . 460 1057 1452 Guns 759 | . 453 186 120 Cannons 493 | . . . 493 Explosions 1710 | . . 871 839 Melee . | . . . . Ramming . | . . . . Kinetic 556 | . 230 . 326 Thermal 703 | . 230 186 287 Explosive 1308 | . . 871 437 Electromagnetic 402 | . . . 402 Impact . | . . . . Slashing . | . . . . Piercing . | . . . . Highest Corruption 29 | . . . 29 Average Corruption 23 | . . . 23 Corruption Purged . | . . . . Corruption Blocked . | . . . . Effects 26 | . . . 26 Message Errors 2 | . . . 2 Matter Fused 5 | . . . 5 Heat Flow Errors 3 | . . . 3 Energy Discharges 4 | . . . 4 Parts Rejected 2 | . . . 2 Data Loss (minor) 3 | . . . 3 Misfires 1 | . . . 1 Alerts 2 | . . . 2 Misdirections 1 | . . . 1 Weapon Failures 3 | . . . 3 Overload Shots . | . . . . Overflow Damage 58 | . . . 58 Projectiles . | . . . . Explosions 58 | . . . 58 Melee . | . . . . Knockbacks 6 | . . . 6 Impact . | . . . . Kinetic 6 | . . . 6 Secondary . | . . . . Self-Inflicted Damage 356 | . . 64 292 Shots 17 | . . 3 14 Rammed . | . . . . Targets Rammed . | . . . . Kicked . | . . . . Crushed . | . . . . Highest Temperature 405 | . 405 193 278 Average Temperature 113 | . 143 72 118 Received Heat Transfer 1305 | . 393 174 738 Effects 9 | . 8 . 1 Shutdowns 2 | . 2 . . Energy Bleed 1 | . . . 1 Interference 1 | . 1 . . Matter Decay 1 | . 1 . . Damage (major) 4 | . 4 . . Siege Activations . | . . . . Robots Corrupted . | . . . . Combat Hostiles . | . . . . Parts Fried 2 | . . . 2 Impact Corruptions . | . . . . Robots Melted . | . . . . Combat Hostiles . | . . . . Parts Melted . | . . . . Heat Transferred 1672 | . 692 425 555 Parts Sabotaged . | . . . . Parts Stolen . | . . . . Parts Stripped . | . . . . Power Chain Reactions 4 | . . . 4 Alert | -11 -10 -9 -8 ------- Run | Yrd Mat Mat Mat Peak Influence 545 | . 137 545 312 Initial 145 | . . . 145 Average 164 | . 52 316 166 Maximum Alert Level 2 | . . 2 1 Low Security (%) 70 | 100 100 18 82 Level 1 23 | . . 60 17 Level 2 5 | . . 21 . Level 3 . | . . . . Level 4 . | . . . . Level 5 . | . . . . High Security . | . . . . Max Security . | . . . . Squads Dispatched 4 | . . . 4 Investigation 1 | . . . 1 Extermination . | . . . . Reinforcement 3 | . . . 3 Assault . | . . . . Garrison . | . . . . Intercept . | . . . . Searches Triggered . | . . . . Construction Impeded . | . . . . Haulers Reinforced . | . . . . Active Scanning Responses . | . . . . Cargo Convoy Interrupts . | . . . . Stealth | -11 -10 -9 -8 --------- Run | Yrd Mat Mat Mat Distress Signals 5 | . 2 . 3 Communications Jammed . | . . . . Distress Signals . | . . . . Times Spotted 44 | . 12 13 19 Peak Tracking Total 5 | . 5 4 5 Tactical Retreats . | . . . . Traps | -11 -10 -9 -8 ------- Run | Yrd Mat Mat Mat Traps Triggered 1 | . . . 1 Indirectly . | . . . . Trap Hack Attempts . | . . . . Triggered . | . . . . Disarmed . | . . . . Reprogrammed . | . . . . Reused . | . . . . Traps Extracted . | . . . . Installed . | . . . . Triggered . | . . . . Machines | -11 -10 -9 -8 ---------- Run | Yrd Mat Mat Mat Machines Disabled 6 | . . 4 2 Max in Single Turn 1 | . . 1 1 Machines Repaired . | . . . . Machines Dismantled . | . . . . Machines Sabotaged . | . . . . Overloaded Fab Kills . | . . . . Hacking | -11 -10 -9 -8 --------- Run | Yrd Mat Mat Mat Machines Accessed 10 | . 5 2 3 Terminals 6 | . 3 1 2 Fabricators . | . . . . Repair Stations 1 | . 1 . . Recycling Units 1 | . 1 . . Scanalyzers 2 | . . 1 1 Garrison Access . | . . . . Total Hacks 15 | . 8 2 5 Successful 7 | . 3 1 3 Failed 8 | . 5 1 2 Catastrophic 3 | . 1 . 2 Database Lockouts . | . . . . Manual . | . . . . Terminals 9 | . 5 1 3 Fabricators . | . . . . Repair Stations 1 | . 1 . . Recycling Units 2 | . 2 . . Scanalyzers 3 | . . 1 2 Garrison Access . | . . . . Terminal Hacks 4 | . 2 1 1 Record 2 | . 1 . 1 Patrol Status 1 | . 1 . . Hauler Manifests 1 | . . 1 . Fabricator Hacks . | . . . . Repair Station Hacks . | . . . . Recycling Unit Hacks 1 | . 1 . . Retrieve Components 1 | . 1 . . Scanalyzer 2 | . . . 2 Insert Component 1 | . . . 1 Analyze 1 | . . . 1 Garrison Access Hacks . | . . . . Unauthorized Hacks . | . . . . Terminals . | . . . . Fabricators . | . . . . Repair Stations . | . . . . Recycling Units . | . . . . Scanalyzers . | . . . . Garrison Access . | . . . . Data Cores Recovered . | . . . . Used . | . . . . Hacking Detections 8 | . 3 2 3 Full Trace Events . | . . . . Feedback Events . | . . . . Feedback Blocked . | . . . . Robot Schematics Acquired . | . . . . Robots Built . | . . . . Authchips . | . . . . Time . | . . . . Total Robot Build Rating . | . . . . Part Schematics Acquired 1 | . . . 1 Parts Built . | . . . . Authchips . | . . . . Time . | . . . . Total Part Build Rating . | . . . . Parts Repaired . | . . . . Time . | . . . . Parts Recycled . | . . . . Recycled Matter . | . . . . Retrieved Matter . | . . . . Retrieved Components 1 | . 1 . . Parts Scanalyzed 1 | . . . 1 Part Schematics Acquired 1 | . . . 1 Parts Damaged . | . . . . Bothacking | -11 -10 -9 -8 ------------ Run | Yrd Mat Mat Mat Used RIF Installer . | . . . . Robots Hacked . | . . . . Non-combat . | . . . . Combat . | . . . . Robot Hacks Applied . | . . . . Relay Couplers Released . | . . . . Fabnet Peak Effective % . | . . . . Robots Rewired . | . . . . Allies Hacked . | . . . . Hacks Repelled . | . . . . Allies | -11 -10 -9 -8 -------- Run | Yrd Mat Mat Mat Total Allies . | . . . . Largest Group . | . . . . Highest-Rated Group . | . . . . Highest-Rated Ally . | . . . . Total Orders . | . . . . Ally Attacks . | . . . . Total Damage . | . . . . Kills . | . . . . Allies Corrupted . | . . . . Allies Melted . | . . . . Intel | -11 -10 -9 -8 ------- Run | Yrd Mat Mat Mat Robot Analysis Total . | . . . . Derelict Logs Recovered . | . . . . Drone Launches . | . . . . Drone Recoveries . | . . . . Exploration | -11 -10 -9 -8 ------------- Run | Yrd Mat Mat Mat Turns Passed 2458 | 85 803 682 888 Spaces Moved 1342 | 55 459 374 454 Core 131 | 14 20 . 97 Treads 135 | 41 94 . . Legs 945 | . 345 374 226 Wheels . | . . . . Hover 128 | . . . 128 Flight 3 | . . . 3 Fastest Speed 35 | 50 50 120 35 Average Speed 144 | 138 126 152 158 Slowest Speed 450 | 160 160 190 450 Overloaded Moves . | . . . . Propulsion Burnouts . | . . . . Robots Hopped . | . . . . Cave-ins Triggered . | . . . . Exploration Rate (%) 33 | 5 63 34 32 Regions Visited 3 Branch Regions . Pre-discovered Areas . | . . . . Known Exits Taken . | . . . . Unknown Exits Taken 3 | 1 1 1 . Scrap Searched . | . . . . Spaces Dug . | . . . . Terrain Destroyed 244 | . . 142 102 Melee . | . . . . Projectile 3 | . . . 3 AOE 241 | . . 142 99 Terrain Rammed . | . . . . Walls Destroyed . | . . . . Machines Disabled . | . . . . Actions | -11 -10 -9 -8 --------- Run | Yrd Mat Mat Mat Total 1634 | 62 592 434 546 Wait 77 | 2 47 21 7 Move 1339 | 54 458 373 454 Hop . | . . . . Pick Up 16 | 1 8 3 4 Fast Attach 35 | 5 10 3 17 Attach 8 | . . 2 6 Detach 2 | . . . 2 Swap 3 | . 2 . 1 Drop 16 | . 5 2 9 Fire 138 | . 62 30 46 Melee . | . . . . Ram . | . . . . Kick . | . . . . Crush . | . . . . Escape Stasis . | . . . . Rewire . | . . . . Trap . | . . . . Miscellaneous . | . . . . Route ------- -11/Scrapyard -10/Materials (discovered 2 exits: *Mat / [*Min]) -9/Materials -8/Materials (discovered 1 exit: [*Fac]) History --------- Turn | Location | Event 10 | -11/Scrapyard | Discovered new exit (range 16) 86 | -11/Scrapyard | Entered Materials 154 | -10/Materials | Discovered new exit (range 6) 352 | -10/Materials | Core integrity fell below 50% 388 | -10/Materials | Lost 7 parts (1p2n4w) 614 | -10/Materials | Build established: Scavenger-Mutant 781 | -10/Materials | Discovered new exit (range 15) 889 | -10/Materials | Entered another Materials area 889 | -9/Materials | Evolved 2 slots: Power x1, Weapon x1 1057 | -9/Materials | Discovered new exit (range 15) 1193 | -9/Materials | Build established: Scavenger-Tank 1571 | -9/Materials | Entered another Materials area 1571 | -8/Materials | Evolved 2 slots: Utility x2 1628 | -8/Materials | Lost 3 parts (1p1n1w) 1998 | -8/Materials | Build established: Bomber 2041 | -8/Materials | System corruption reached 10% 2092 | -8/Materials | Discovered new exit (range 4) 2360 | -8/Materials | Core integrity fell below 50% 2413 | -8/Materials | Lost 13 parts (2p3n1u7w) 2431 | -8/Materials | Core integrity fell below 20% 2459 | -8/Materials | Destroyed by G-47 Trooper with Particle Gun Last Messages --------------- G-47 Trooper knocked back. U-05 Engineer lays Concrete. Imp. Heat Sink destroyed. Critical hit (Burn: +37). G-47 Trooper knocked back. System corrupted: Assault Cannon jammed. U-05 Engineer lays Concrete. U-05 Engineer builds a Wall. Destroyed Lgt. Nuclear Core. G-47 Trooper knocked back. U-05 Engineer lays Concrete. U-05 Engineer builds a Wall. U-05 Engineer lays Concrete. Assault Cannon destroyed. U-05 Engineer builds a Wall. System corrupted: Energy discharge (-34). U-05 Engineer builds a Wall. Acquired 43 matter. Acquired 5 matter. U-05 Engineer lays Concrete. Map ----- +----------------------------------------------------+ | | | | | | | | | | | | | ????#############??????????????? | | ????# #??????????????? | | ????# #??###?????????? | | ????# #??##########??? | | ????# """ """ #### / #??? | | ????# """ """ #### """" #??? | | ????# """ """ # # """" #??? | | ????# # # """" #??? | | ????########+#+## / #??? | | ????####??## # """ #??? | | ???? ??## # "R #??? | | ??## """ ?## ### # """ #??? | | ??## """ ## # # #### | | ??## """ ## # # ##+######## | | ??## # # ## ## # | | #### ### # # ##""" # | | ########+# # ###%##"T% # | | # ! # u """ # | | % # % %g/ # | | # ### = # #####@ ; | | # #### ############ " # | | ===???#?## # """ ## """ # | | ?=??? # # """ ## """ # | | ?????## # # """ ## # | | ?????## # # ## # | | ?????## # # ## =] # | | ?????## # # "" ##+##### | | ?????## + # S"" ## ##### | | ?????## # # "" ## ##??? | | ??##### # ############ ##??? | | ####### # ############ ##??? | | #### ####### # ????????## ##??? | | # ]! ] ## + ????????## ##??? | | # ]! = ## # #### ###?? | | # ] ! ## ############+###?? | | # # # = ##?? | | # + # ##?? | | # ! # T + " """"" ##?? | | # = # # """"""""" ##?? | | # ## ### """ """ ##?? | | ############ #################?? | | ############/#################?? | | ??######### ##?????????? | | ??######### ##?????????? | +----------------------------------------------------+ Best States ------------- Heat Dissipation 45 Energy Generation 21 Energy Capacity 325 Matter Stores 300 Matter Capacity 300 Sight Range 16 Terrain Scan Density 110 Armor Coverage 150 Weapon Shielding 66 Evasion (%) 55 Targeting Accuracy 8 Recoil Reduction 2 Item Schematics ----------------- Lgt. Assault Rifle | -8/Materials | Scanalyzed Robot Schematics ------------------ None Fabricated ------------ Nothing Alien Tech Used ----------------- None Achievements -------------- Loot Pinata Remodeling Challenges ------------ None Game ------ Seed ServoWardroneMantle Manual? 0 Play Time 00:21:07 Cumulative 2.7 hours Start 2024.04.05 @ 17:31:40 End 2024.04.05 @ 17:53:18 Sessions 1 Manual Loads 0 Difficulty Rogue Special Mode None Game No. 8 Rogue 8 Adventurer 0 Explorer 0 Win Type - Total 0 Types 0/0/0/0/0/0/0/0/0 Lore% 0 Gallery% 10 Achievement% 8 Wizard Run 0 Options --------- Layout 1 ASCII 0 Keyboard 0 Movement Arrows Keybinds 0 Fullscreen 1 Font 20/SmallcapsGlow Map View 28x22 Zoom Use 99% Tactical HUD 0 Map Filters NONE Filters NONE Steam 1 RUN: 1524715c-ceed-4dd3-9ae9-01bef9b06dc2